[Event "-chT Youth Countries 2019"]
[Site "Wuerzburg"]
[Date "2019.10.06"]
[Round "7.7"]
[White "Buchholz, Maja"]
[Black "Ensslinger, Colin"]
[Result "0-1"]
[ECO "A50"]
[WhiteElo "1671"]
[BlackElo "1687"]
[Annotator "NA"]
[PlyCount "104"]
[EventDate "2019.10.02"]
[EventType "team-tourn"]
[EventRounds "7"]
[EventCountry "GER"]
[SourceTitle "playchess.com"]
[Source "ChessBase"]
[SourceQuality "1"]
[WhiteTeam "Hessen"]
[BlackTeam "Team Süd"]
[TimeControl "40/5400+30:1800+30"]

1. d4 {[%emt 0:00:00]} Nf6 {[%emt 0:00:00]} 2. c4 {[%emt 0:00:00]} b6 {[%emt 0:00:05]} 3. Nc3 {[%emt 0:00:00]} Bb7 {[%emt 0:00:05]} 4. Qc2 {[%emt 0:00:08]} d5 {[%emt 0:00:17]} 5. cxd5 {[%emt 0:00:45]} Nxd5 {[%emt 0:00:17]} 6. e4 {[%emt 0:01:42]} Nxc3 {[%emt 0:00:06]} 7. bxc3 {[%emt 0:00:07]} e5 {[%emt 0:00:09]} 8. Nf3 {[%emt 0:05:19]} exd4 {[%emt 0:00:44]} 9. cxd4 {[%emt 0:04:24]} Bb4+ {[%emt 0:00:17]} 10. Bd2 {[%emt 0:02:47]} Bxd2+ {[%emt 0:00:20]} 11. Kxd2 {[%emt 0:04:23]} O-O {[%emt 0:01:34]} 12. Bd3 {[%emt 0:02:08]} Nc6 {[%emt 0:01:09]} 13. Qc3 {[%emt 0:01:17]} Qe7 {[%emt 0:06:57]} 14. Rhe1 {[%emt 0:01:25]} Rad8 {[%emt 0:01:35]} 15. Re2 {[%emt 0:02:20]} Nb4 {[%emt 0:03:44]} 16. Ke1 {[%emt 0:04:48]} Nxd3+ {[%emt 0:01:03]} 17. Qxd3 {[%emt 0:00:38]} Qb4+ {[%emt 0:00:32]} 18. Qd2 {[%emt 0:05:16]} Qxd2+ {[%emt 0:01:31]} 19. Kxd2 {[%emt 0:02:57]} Rfe8 {[%emt 0:00:36]} 20. Rae1 {[%emt 0:04:55]} Re7 {[%emt 0:03:11]} 21. Kc3 {[%emt 0:06:53]} Rde8 {[%emt 0:00:25]} 22. Nd2 {[%emt 0:01:17]} f6 {[%emt 0:01:43]} 23. g3 {[%emt 0:08:21]} Kf7 {[%emt 0:02:20]} 24. f4 {[%emt 0:02:54]} c5 {[%emt 0:00:52]} 25. dxc5 {[%emt 0:06:21]} Rc8 {[%emt 0:01:14]} 26. Re3 {[%emt 0:04:54]} Rxc5+ {[%emt 0:00:24]} 27. Kb3 {[%emt 0:03:11]} Rd7 {[%emt 0:00:50]} 28. Nb1 {[%emt 0:03:16]} Ba6 {[%emt 0:00:54]} 29. e5 {[%emt 0:05:41]} Bc4+ {[%emt 0:02:23]} 30. Kb2 {[%emt 0:00:45]} fxe5 {[%emt 0:00:24]} 31. Rxe5 {[%emt 0:02:53]} Rxe5 {[%emt 0:01:43]} 32. Rxe5 {[%emt 0:01:47]} Re7 {[%emt 0:00:24]} 33. Rxe7+ {[%emt 0:02:14]} Kxe7 {[%emt 0:00:07]} 34. Nd2 {[%emt 0:00:18]} Bd5 {[%emt 0:00:31]} 35. a3 {[%emt 0:00:23]} Kd6 {[%emt 0:00:18]} 36. Nb3 {[%emt 0:03:10]} Be4 {[%emt 0:01:48]} 37. Kc3 {[%emt 0:01:40]} Kd5 {[%emt 0:02:00]} 38. Nd2 {[%emt 0:01:00]} h5 {[%emt 0:03:23]} 39. a4 {[%emt 0:01:33]} g6 {[%emt 0:08:48]} 40. Nc4 {[%emt 0:02:39]} Bf5 {[%emt 0:02:46]} 41. h4 {[%emt 0:06:49]} Ke4 {[%emt 0:02:46]} 42. Nd6+ {[%emt 0:04:15]} Kf3 {[%emt 0:00:29]} 43. Nxf5 {[%emt 0:00:37]} gxf5 {[%emt 0:00:18]} 44. Kc4 {[%emt 0:00:29]} Kxg3 {[%emt 0:00:15]} 45. Kb5 {[%emt 0:00:06]} Kxh4 {[%emt 0:00:45]} 46. Ka6 {[%emt 0:00:04]} Kg4 {[%emt 0:00:14]} 47. Kxa7 {[%emt 0:00:04]} h4 {[%emt 0:00:20]} 48. Kxb6 {[%emt 0:00:05]} h3 {[%emt 0:00:24]} 49. a5 {[%emt 0:00:03]} h2 {[%emt 0:00:14]} 50. a6 {[%emt 0:00:07]} h1=Q {[%emt 0:00:05]} 51. Ka7 {[%emt 0:00:01]} Qa1 {[%emt 0:00:30]} 52. Kb7 {[%emt 0:00:06]} Qxa6+ {[%emt 0:00:50] normal} 0-1

[Event "-chT Youth Countries 2019"]
[Site "Wuerzburg"]
[Date "2019.10.06"]
[Round "7.7"]
[White "Sauer, Tim"]
[Black "Mundt, Alexandra"]
[Result "1-0"]
[ECO "C42"]
[WhiteElo "1597"]
[BlackElo "1760"]
[Annotator "NA"]
[PlyCount "119"]
[EventDate "2019.10.02"]
[EventType "team-tourn"]
[EventRounds "7"]
[EventCountry "GER"]
[SourceTitle "playchess.com"]
[Source "ChessBase"]
[SourceQuality "1"]
[WhiteTeam "Niedersachsen"]
[BlackTeam "Schleswig-Holstein"]
[TimeControl "40/5400+30:1800+30"]

1. e4 {[%emt 0:00:00]} e5 {[%emt 0:00:00]} 2. Nf3 {[%emt 0:00:00]} Nf6 {[%emt 0:00:00]} 3. Nxe5 {[%emt 0:00:00]} d6 {[%emt 0:00:00]} 4. Nf3 {[%emt 0:00:00]} Nxe4 {[%emt 0:00:02]} 5. Nc3 {[%emt 0:00:00]} Nxc3 {[%emt 0:00:08]} 6. dxc3 {[%emt 0:00:01]} Be7 {[%emt 0:00:08]} 7. Be3 {[%emt 0:00:06]} O-O {[%emt 0:00:42]} 8. Qd2 {[%emt 0:00:33]} Nc6 {[%emt 0:00:54]} 9. O-O-O {[%emt 0:06:41]} a6 {[%emt 0:03:04]} 10. Bd3 {[%emt 0:01:17]} Rb8 {[%emt 0:01:27]} 11. h4 {[%emt 0:05:26]} b5 {[%emt 0:03:08]} 12. Ng5 {[%emt 0:08:06]} h6 {[%emt 0:04:56]} 13. Nf3 {[%emt 0:24:15]} Na5 {[%emt 0:20:00]} 14. Bxh6 {[%emt 0:09:57]} Nc4 {[%emt 0:04:49]} 15. Qf4 {[%emt 0:18:59]} Re8 {[%emt 0:13:07]} 16. Bg5 {[%emt 0:01:59]} Bxg5 {[%emt 0:11:15]} 17. hxg5 {[%emt 0:00:36]} Be6 {[%emt 0:06:30]} 18. Qh4 {[%emt 0:05:02]} Kf8 {[%emt 0:02:13]} 19. Qh8+ {[%emt 0:01:08]} Ke7 {[%emt 0:00:05]} 20. Qxg7 {[%emt 0:00:18]} Rg8 {[%emt 0:02:16]} 21. Qf6+ {[%emt 0:00:51]} Kf8 {[%emt 0:00:20]} 22. Qf4 {[%emt 0:00:29]} Ne5 {[%emt 0:07:22]} 23. Nxe5 {[%emt 0:00:42]} dxe5 {[%emt 0:00:02]} 24. Qxe5 {[%emt 0:03:34]} Qxg5+ {[%emt 0:00:12]} 25. Qxg5 {[%emt 0:00:16]} Rxg5 {[%emt 0:00:01]} 26. Rh8+ {[%emt 0:00:55]} Rg8 {[%emt 0:00:01]} 27. Rxg8+ {[%emt 0:00:02]} Kxg8 {[%emt 0:00:09]} 28. Be4 {[%emt 0:01:08]} Kf8 {[%emt 0:01:25]} 29. b3 {[%emt 0:00:21]} Rb6 {[%emt 0:02:26]} 30. Rd3 {[%emt 0:01:26]} Ke7 {[%emt 0:02:55]} 31. Kd2 {[%emt 0:00:32]} Bd7 {[%emt 0:01:53]} 32. Re3 {[%emt 0:00:56]} Kf6 {[%emt 0:01:43]} 33. Rf3+ {[%emt 0:00:32]} Ke7 {[%emt 0:01:03]} 34. g3 {[%emt 0:00:56]} c5 35. Re3 {[%emt 0:03:33]} Kf8 {[%emt 0:07:26]} 36. f4 {[%emt 0:03:00]} Rh6 {[%emt 0:01:09]} 37. Re2 {[%emt 0:04:09]} Bg4 {[%emt 0:01:28]} 38. Rg2 {[%emt 0:00:28]} Rd6+ {[%emt 0:02:56]} 39. Kc1 {[%emt 0:00:30]} Rd1+ {[%emt 0:00:28]} 40. Kb2 {[%emt 0:00:09]} Ke7 {[%emt 0:01:42]} 41. Bb7 {[%emt 0:30:22]} Rd6 {[%emt 0:00:35]} 42. Rh2 {[%emt 0:00:00]} a5 {[%emt 0:06:25]} 43. Rh4 Rg6 {[%emt 0:02:39]} 44. Bc6 {[%emt 0:00:00]} b4 {[%emt 0:02:51]} 45. cxb4 {[%emt 0:00:00]} axb4 {[%emt 0:00:49]} 46. Bd5 {[%emt 0:00:00]} Rg7 {[%emt 0:04:09]} 47. Rh1 {[%emt 0:00:00]} Kd6 {[%emt 0:02:33]} 48. Bc4 {[%emt 0:00:00]} Bf3 {[%emt 0:05:44]} 49. Re1 {[%emt 0:00:00]} Bg4 {[%emt 0:05:44]} 50. Re5 {[%emt 0:00:00]} f6 {[%emt 0:01:10]} 51. Rd5+ {[%emt 0:00:00]} Kc6 {[%emt 0:00:29]} 52. Rd8 {[%emt 0:00:00]} Bd7 {[%emt 0:00:43]} 53. Rg8 {[%emt 0:00:00]} Rh7 {[%emt 0:01:36]} 54. Rg6 {[%emt 0:00:00]} Rh2 {[%emt 0:00:13]} 55. Rxf6+ {[%emt 0:00:00]} Kc7 {[%emt 0:00:23]} 56. Bd3 {[%emt 0:00:00]} Rg2 {[%emt 0:00:39]} 57. Rg6 {[%emt 0:00:00]} Rf2 58. Rg5 {[%emt 0:00:00]} Kd6 {[%emt 0:02:06]} 59. a3 {[%emt 0:00:00]} Rf3 {[%emt 0:00:36]} 60. a4 {[%emt 0:00:00] normal Kd5} 1-0

[Event "-chT Youth Countries 2019"]
[Site "Wuerzburg"]
[Date "2019.10.06"]
[Round "7.7"]
[White "Haubold, Sebastian Marcel"]
[Black "Schnabel, Luise"]
[Result "1-0"]
[ECO "B03"]
[WhiteElo "1585"]
[BlackElo "1900"]
[Annotator "NA"]
[PlyCount "112"]
[EventDate "2019.10.02"]
[EventType "team-tourn"]
[EventRounds "7"]
[EventCountry "GER"]
[SourceTitle "playchess.com"]
[Source "ChessBase"]
[SourceQuality "1"]
[WhiteTeam "Sachsen-Anhalt"]
[BlackTeam "Berlin"]
[TimeControl "40/5400+30:1800+30"]

1. e4 {[%emt 0:00:00]} Nf6 {[%emt 0:00:00]} 2. e5 {[%emt 0:00:11]} Nd5 {[%emt 0:00:00]} 3. c4 {[%emt 0:00:36]} Nb6 {[%emt 0:00:12]} 4. d4 {[%emt 0:01:00]} d6 {[%emt 0:00:08]} 5. f4 {[%emt 0:01:04]} dxe5 {[%emt 0:00:09]} 6. fxe5 {[%emt 0:00:08]} Bf5 {[%emt 0:00:11] unterminated} 7. Be3 {[%emt 0:04:58] unterminated} e6 {[%emt 0:02:13] unterminated} 8. Nc3 {[%emt 0:05:07]} Bb4 {[%emt 0:01:24] unterminated} 9. Be2 {[%emt 0:06:24] [#] unterminated} c5 $1 {[%emt 0:02:23] unterminated} 10. Nf3 {[%emt 0:04:14] unterminated} Nc6 {[%emt 0:08:01] unterminated B03: Alekhine's Defence: Four Pawns Attack} (10... O-O 11. O-O cxd4 12. Nxd4 Bxc3 13. bxc3 Bg6 14. Nb5 N6d7 15. Nd6 Nc6 16. Nxb7 Qc7 17. Nd6 Ncxe5 18. Qd4 {½-½ (30) Oren,I (2316)-Schmidt,L (2395) ICCF email 2015}) 11. O-O {[%emt 0:03:26] unterminated} Bxc3 {[%emt 0:11:15] unterminated} 12. bxc3 {[%emt 0:01:58] unterminated} Rc8 $146 {[%emt 0:08:31] unterminated} ({Predecessor:} 12... O-O 13. Rc1 Rc8 14. Bg5 Qd7 15. dxc5 Qxd1 16. Rfxd1 Na4 17. Be3 Bg4 18. Bd4 h6 19. h3 Bh5 20. g4 Bg6 {½-½ (32) Podvoysky,E (2195)-Skeels,J (2214) LSS email 2009}) 13. Qd2 {[%emt 0:05:49] unterminated} Na5 {[%emt 0:08:34] unterminated} 14. dxc5 {[%emt 0:04:14] unterminated} Qxd2 {[%emt 0:07:23]} 15. Nxd2 {[%emt 0:00:48] unterminated} ({Of course not} 15. Bxd2 Nbxc4 16. Bg5 h6 $15) 15... Nd7 {[%emt 0:04:18]} 16. Nb3 {[%emt 0:02:31] unterminated} Nxb3 $2 {[%emt 0:05:38]} (16... Nc6 $11 {and Black has nothing to worry.}) 17. axb3 {[%emt 0:00:16] unterminated} a6 {[%emt 0:03:37] unterminated} 18. b4 {[%emt 0:05:01] unterminated} (18. Bf3 $18 Nxc5 19. Bxc5 Rxc5 20. Bxb7) 18... Nxe5 {[%emt 0:03:07]} 19. Bd4 {[%emt 0:01:53]} f6 {[%emt 0:02:56]} 20. Bxe5 {[%emt 0:01:55]} fxe5 {[%emt 0:00:07]} 21. Rad1 {[%emt 0:01:00] unterminated} Ke7 {[%emt 0:03:10] unterminated} 22. Rfe1 {[%emt 0:02:54] unterminated} e4 {[%emt 0:06:20]} 23. Rd6 {[%emt 0:02:17] unterminated} Rhd8 {[%emt 0:02:01]} 24. Red1 {[%emt 0:04:04] unterminated} Bg6 {[%emt 0:04:50]} 25. Bg4 {[%emt 0:01:32]} Bf5 {[%emt 0:01:26]} 26. Bxf5 {[%emt 0:01:05]} exf5 {[%emt 0:00:07]} 27. Kf2 {[%emt 0:00:33] unterminated} Rxd6 {[%emt 0:02:22]} 28. Rxd6 {[%emt 0:00:59]} Rd8 {[%emt 0:07:46]} 29. Rb6 {[%emt 0:01:59]} Rd3 {[%emt 0:00:55]} 30. Rxb7+ {[%emt 0:00:07]} Kd8 {[%emt 0:00:17]} 31. b5 {[%emt 0:05:01]} axb5 {[%emt 0:00:36]} 32. cxb5 {[%emt 0:00:13]} Rxc3 {[%emt 0:00:28] unterminated} 33. c6 {[%emt 0:00:24]} Rc5 $2 {[%emt 0:00:46]} ({Black should play} 33... f4 $14) 34. Ke3 {[%emt 0:02:17] unterminated} g5 {[%emt 0:03:07]} 35. g3 {[%emt 0:01:49]} (35. Kd4 $142 Rc2 36. Rxh7) 35... h6 {[%emt 0:00:47]} 36. Kd4 {[%emt 0:01:30]} Rc2 {[%emt 0:00:22]} 37. Rd7+ {[%emt 0:01:36]} Kc8 {[%emt 0:00:16] unterminated} 38. Ke5 $2 {[%emt 0:06:18]} (38. Re7) 38... e3 {[%emt 0:00:52]} 39. Rd3 {[%emt 0:00:16]} e2 {[%emt 0:00:49]} 40. Re3 {[%emt 0:00:11]} Kc7 {[%emt 0:01:36] unterminated} 41. Kxf5 {[%emt 0:34:04] unterminated} Rc5+ {[%emt 0:04:34]} 42. Kg6 {[%emt 0:00:00]} Rxb5 {[%emt 0:01:35] unterminated} 43. Rxe2 {[%emt 0:00:00]} Kxc6 {[%emt 0:02:32] unterminated} 44. Kxh6 {[%emt 0:00:00] unterminated} Kd6 {[%emt 0:03:55] unterminated} 45. Kg6 {[%emt 0:00:00] unterminated} Rc5 {[%emt 0:03:06]} 46. Kh5 $18 {[%emt 0:00:00]} Rb5 {[%emt 0:02:43]} 47. Kg4 {[%emt 0:00:00]} Kd7 {[%emt 0:01:00]} 48. h4 {[%emt 0:00:00]} gxh4 {[%emt 0:01:35]} 49. Kxh4 {[%emt 0:00:00]} Rb1 {[%emt 0:02:12]} 50. g4 {[%emt 0:00:00]} Rg1 {[%emt 0:00:33]} 51. Kh5 {[%emt 0:00:00]} Rh1+ {[%emt 0:00:24]} 52. Kg6 {[%emt 0:00:00]} Rg1 {[%emt 0:00:28]} 53. g5 {[%emt 0:00:00]} Rg3 {[%emt 0:00:16]} 54. Kh6 {[%emt 0:00:00]} Rh3+ {[%emt 0:00:34]} 55. Kg7 {[%emt 0:00:00]} Rg3 {[%emt 0:00:14]} 56. g6 {[%emt 0:00:00]} Rg1 {[%emt 0:00:21] normal} 1-0

[Event "-chT Youth Countries 2019"]
[Site "Wuerzburg"]
[Date "2019.10.06"]
[Round "7.7"]
[White "Henninger, Claire"]
[Black "Fuchs, Florian"]
[Result "0-1"]
[ECO "B33"]
[WhiteElo "1471"]
[BlackElo "2256"]
[Annotator "ChessBase"]
[PlyCount "98"]
[EventDate "2019.10.02"]
[EventType "team-tourn"]
[EventRounds "7"]
[EventCountry "GER"]
[SourceTitle "playchess.com"]
[Source "ChessBase"]
[SourceQuality "1"]
[WhiteTeam "Baden 2"]
[BlackTeam "Bayern 2"]
[TimeControl "40/5400+30:1800+30"]

1. e4 {[%emt 0:00:00]} c5 {[%emt 0:00:00]} 2. Nf3 {[%emt 0:00:00]} Nc6 {[%emt 0:00:00]} 3. d4 {[%emt 0:00:00]} cxd4 {[%emt 0:00:00]} 4. Nxd4 {[%emt 0:00:00]} Nf6 {[%emt 0:01:21]} 5. Nc3 {[%emt 0:00:20]} e6 {[%emt 0:01:40]} 6. a3 {[%emt 0:04:57]} Qc7 {[%emt 0:01:04]} 7. Be3 {[%emt 0:02:36]} a6 {[%emt 0:01:29]} 8. Be2 {[%emt 0:02:45]} b5 {[%emt 0:01:32]} 9. Nxc6 {[%emt 0:10:55]} dxc6 {[%emt 0:04:00]} 10. f4 {[%emt 0:07:33]} Bb7 {[%emt 0:02:38]} 11. e5 {[%emt 0:02:37]} Rd8 {[%emt 0:03:59]} 12. Qc1 {[%emt 0:01:22]} Nd5 {[%emt 0:00:29]} 13. Bf3 {[%emt 0:03:34]} Nxc3 {[%emt 0:03:40]} 14. bxc3 {[%emt 0:00:22]} c5 {[%emt 0:00:23]} 15. Ke2 {[%emt 0:05:14]} Bd5 {[%emt 0:05:27]} 16. Rd1 {[%emt 0:02:16]} Qc6 {[%emt 0:02:53]} 17. Rd2 {[%emt 0:04:29]} Bxf3+ {[%emt 0:00:43]} 18. gxf3 {[%emt 0:00:15]} Be7 {[%emt 0:00:34]} 19. Rxd8+ {[%emt 0:00:51]} Kxd8 {[%emt 0:01:23]} 20. Qg1 {[%emt 0:03:41]} g6 {[%emt 0:01:35]} 21. Qd1+ {[%emt 0:04:09]} Kc7 {[%emt 0:00:12]} 22. Qd3 {[%emt 0:02:18]} Rd8 {[%emt 0:00:56]} 23. Qe4 {[%emt 0:00:52]} Qb6 {[%emt 0:05:13]} 24. c4 {[%emt 0:09:53]} Qa5 {[%emt 0:10:39]} 25. Ra2 {[%emt 0:03:48]} Qa4 {[%emt 0:15:12]} 26. cxb5 {[%emt 0:09:34]} Qxb5+ {[%emt 0:01:09]} 27. c4 {[%emt 0:02:31]} Qb3 {[%emt 0:00:48]} 28. Qc2 {[%emt 0:00:44]} Rb8 {[%emt 0:00:38]} 29. Qxb3 {[%emt 0:01:18]} Rxb3 {[%emt 0:00:05]} 30. Bd2 {[%emt 0:06:17]} h6 {[%emt 0:08:00]} 31. a4 {[%emt 0:03:13]} Kc6 {[%emt 0:04:01]} 32. Rc2 {[%emt 0:00:57]} Ra3 {[%emt 0:00:54]} 33. a5 {[%emt 0:02:21]} Bd8 {[%emt 0:00:43]} 34. Rc3 {[%emt 0:00:26]} Ra2 {[%emt 0:00:12]} 35. Rd3 {[%emt 0:01:16]} Bxa5 {[%emt 0:00:20]} 36. Rd6+ {[%emt 0:00:32]} Kc7 {[%emt 0:00:19]} 37. Kd1 {[%emt 0:01:01]} Bb4 {[%emt 0:01:11]} 38. Ke2 {[%emt 0:01:25]} a5 {[%emt 0:01:23]} 39. Ke3 {[%emt 0:00:36]} a4 {[%emt 0:01:04]} 40. Bxb4 {[%emt 0:02:24]} cxb4 {[%emt 0:00:15]} 41. Kd3 {[%emt 0:30:23]} b3 {[%emt 0:30:36]} 42. Ra6 {[%emt 0:00:17]} b2 {[%emt 0:00:23]} 43. Kc2 {[%emt 0:00:14]} a3 {[%emt 0:00:09]} 44. Kb1 {[%emt 0:00:32]} Ra1+ {[%emt 0:00:04]} 45. Kc2 {[%emt 0:00:06]} b1=Q+ {[%emt 0:00:09]} 46. Kd2 {[%emt 0:00:05]} Qb3 {[%emt 0:00:33]} 47. Ra7+ {[%emt 0:00:08]} Kb6 {[%emt 0:00:14]} 48. Ra8 {[%emt 0:00:09]} Ra2+ {[%emt 0:00:06]} 49. Ke1 {[%emt 0:00:15]} Qb1# {normal} 0-1

[Event "-chT Youth Countries 2019"]
[Site "Wuerzburg"]
[Date "2019.10.06"]
[Round "7.7"]
[White "Alhassan, Jodi"]
[Black "Woerz, Ann-Sophie"]
[Result "1/2-1/2"]
[ECO "B07"]
[WhiteElo "1147"]
[BlackElo "1500"]
[Annotator "NA"]
[PlyCount "94"]
[EventDate "2019.10.02"]
[EventType "team-tourn"]
[EventRounds "7"]
[EventCountry "GER"]
[SourceTitle "playchess.com"]
[Source "ChessBase"]
[SourceQuality "1"]
[WhiteTeam "Saarland"]
[BlackTeam "Württemberg"]
[TimeControl "40/5400+30:1800+30"]

1. e4 {[%emt 0:00:00]} d6 {[%emt 0:00:00]} 2. d4 {[%emt 0:00:00]} Nf6 {[%emt 0:00:00]} 3. Nc3 {[%emt 0:00:00]} c6 {[%emt 0:00:00]} 4. f4 {[%emt 0:00:55]} Qa5 {[%emt 0:00:30]} 5. Bd3 {[%emt 0:02:34]} Nbd7 {[%emt 0:02:02]} 6. Bd2 {[%emt 0:12:56]} e5 {[%emt 0:04:54]} 7. Nb5 {[%emt 0:15:33]} Qd8 {[%emt 0:00:57]} 8. Nxd6+ {[%emt 0:01:28]} Bxd6 {[%emt 0:00:47]} 9. dxe5 {[%emt 0:02:53]} Nxe5 {[%emt 0:01:55]} 10. fxe5 {[%emt 0:00:54]} Bxe5 {[%emt 0:00:21]} 11. Rb1 {[%emt 0:08:42]} Nxe4 {[%emt 0:05:23]} 12. Qe2 Nxd2 {[%emt 0:03:09]} 13. Qxe5+ {[%emt 0:09:18]} Be6 {[%emt 0:09:39]} 14. Kxd2 {[%emt 0:01:13]} O-O {[%emt 0:03:34]} 15. Qe4 {[%emt 0:05:18]} Qg5+ {[%emt 0:02:54]} 16. Ke1 {[%emt 0:05:41]} Qh6 {[%emt 0:01:22]} 17. Ne2 {[%emt 0:09:15]} Bxa2 {[%emt 0:03:24]} 18. Ra1 {[%emt 0:01:29]} Bd5 {[%emt 0:01:03]} 19. Qg4 {[%emt 0:03:12]} Rfe8 {[%emt 0:03:31]} 20. h4 {[%emt 0:05:52]} Qe3 {[%emt 0:04:23]} 21. h5 {[%emt 0:05:08]} h6 {[%emt 0:00:30]} 22. Rf1 {[%emt 0:01:40]} Re5 {[%emt 0:06:08]} 23. Kd1 {[%emt 0:03:57]} Rd8 {[%emt 0:01:17]} 24. Qf4 {[%emt 0:01:01]} Qxf4 {[%emt 0:02:25]} 25. Nxf4 {[%emt 0:00:14]} a6 {[%emt 0:02:37]} 26. Nxd5 {[%emt 0:00:31]} Rdxd5 {[%emt 0:00:33]} 27. g4 {[%emt 0:00:18]} Rd4 {[%emt 0:02:13]} 28. Rg1 {[%emt 0:00:48]} Rg5 {[%emt 0:00:29]} 29. Re1 {[%emt 0:00:20]} Kf8 {[%emt 0:00:20]} 30. Re4 {[%emt 0:00:55]} Rxg4 {[%emt 0:02:12]} 31. Rxg4 {[%emt 0:00:15]} Rxg4 {[%emt 0:00:02]} 32. Kd2 {[%emt 0:00:23]} Rg5 {[%emt 0:00:42]} 33. Rh1 {[%emt 0:00:38]} Ke7 {[%emt 0:02:51]} 34. Re1+ {[%emt 0:00:21]} Kd6 {[%emt 0:00:22]} 35. Rf1 {[%emt 0:00:30]} f6 {[%emt 0:02:13]} 36. Bg6 {[%emt 0:00:25]} a5 {[%emt 0:04:16]} 37. Rf5 {[%emt 0:01:16]} Rxf5 {[%emt 0:00:10]} 38. Bxf5 {[%emt 0:00:06]} Ke5 {[%emt 0:00:04]} 39. Bg6 {[%emt 0:00:25]} f5 {[%emt 0:00:35]} 40. Ke3 {[%emt 0:01:29]} a4 {[%emt 0:06:59]} 41. Bh7 {[%emt 0:32:02]} b5 {[%emt 0:30:47]} 42. c3 {[%emt 0:00:00]} c5 {[%emt 0:00:00]} 43. Bg8 {[%emt 0:00:00]} b4 {[%emt 0:00:00]} 44. cxb4 {[%emt 0:00:00]} cxb4 {[%emt 0:00:00]} 45. Bf7 {[%emt 0:00:00]} b3 {[%emt 0:00:00]} 46. Bg8 {[%emt 0:00:00]} Kf6 {[%emt 0:00:00]} 47. Kf4 {[%emt 0:00:00]} g5+ {[%emt 0:00:00] normal} 1/2-1/2

[Event "-chT Youth Countries 2019"]
[Site "Wuerzburg"]
[Date "2019.10.06"]
[Round "7.8"]
[White "Wiesner, Paula"]
[Black "Voigt, Anastasia"]
[Result "1-0"]
[ECO "D35"]
[WhiteElo "1958"]
[BlackElo "1457"]
[Annotator "NA"]
[PlyCount "47"]
[EventDate "2019.10.02"]
[EventType "team-tourn"]
[EventRounds "7"]
[EventCountry "GER"]
[SourceTitle "playchess.com"]
[Source "ChessBase"]
[SourceQuality "1"]
[WhiteTeam "Berlin"]
[BlackTeam "Sachsen-Anhalt"]
[TimeControl "40/5400+30:1800+30"]

1. d4 {[%emt 0:00:00]} d5 {[%emt 0:00:00]} 2. c4 {[%emt 0:00:00]} e6 {[%emt 0:00:00]} 3. Nc3 {[%emt 0:00:00]} Nf6 {[%emt 0:00:00]} 4. cxd5 {[%emt 0:00:01]} exd5 {[%emt 0:00:00]} 5. Bg5 {[%emt 0:00:06]} Be7 {[%emt 0:00:12]} 6. e3 {[%emt 0:00:05]} c6 {[%emt 0:00:08]} 7. Qc2 {[%emt 0:00:07]} O-O {[%emt 0:00:22]} 8. Bd3 {[%emt 0:00:05]} Nbd7 {[%emt 0:00:09]} 9. Nge2 {[%emt 0:00:12]} Re8 {[%emt 0:00:22]} 10. O-O {[%emt 0:00:07] unterminated} Nf8 {[%emt 0:02:03] unterminated} 11. f3 {[%emt 0:04:25] unterminated} b6 {[%emt 0:04:28] unterminated unterminated. D36: Queen's Gambit Declined: Exchange Variation: Main line (5 Bg5 c6 6 Qc2)} (11... g6 12. Bh4 Ne6 13. Kh1 b5 14. Rad1 Bb7 15. Qc1 Rc8 16. e4 b4 17. Na4 Qa5 18. b3 c5 19. Nxc5 Nxc5 20. dxc5 Rxc5 {½-½ (41) Mamedyarov,S (2767)-Radjabov,T (2758) Khanty-Mansiysk 2019}) 12. Rad1 {[%emt 0:03:43] unterminated} Bb7 {[%emt 0:06:36] unterminated} 13. e4 {[%emt 0:07:05] unterminated} dxe4 {[%emt 0:10:04]} 14. fxe4 {[%emt 0:00:16]} Rc8 $146 {[%emt 0:01:32] unterminated} ({Predecessor:} 14... Ng4 15. Bc1 Bg5 16. Rf3 Bxc1 17. Qxc1 Nh6 18. Rg3 Kh8 19. e5 f6 20. Bc4 fxe5 21. Qxh6 Ng6 22. Qxg6 {1-0 (22) Savchenko,A (2163)-Wolter,J (2106) Dortmund 2008}) 15. Bc4 {[%emt 0:08:04] unterminated} Ne6 {[%emt 0:06:25] unterminated} 16. Bxf6 {[%emt 0:18:23]} Bxf6 {[%emt 0:01:12]} 17. e5 {[%emt 0:00:07] unterminated} Bg5 {[%emt 0:02:49]} 18. Qf5 {[%emt 0:01:07]} Qe7 {[%emt 0:02:42] unterminated} 19. Ne4 {[%emt 0:02:38] unterminated} Rcd8 {[%emt 0:04:04]} 20. Nd6 {[%emt 0:03:03]} Rxd6 {[%emt 0:00:58] unterminated} 21. exd6 {[%emt 0:00:39]} Qd7 {[%emt 0:00:44] unterminated} 22. Kh1 {[%emt 0:03:45] unterminated} Bf6 {[%emt 0:01:14] unterminated} 23. Nf4 {[%emt 0:07:12] unterminated} Nc5 $18 {[%emt 0:08:49] normal} (23... Qxd6 $142 24. Nh5 Ng5 25. Nxf6+ gxf6 26. Qxf6 Qxf6 27. Rxf6 Kg7) 24. Bxf7+ {[%emt 0:06:03] normal} 1-0